[Event "Central-SRB chT 2018"]
[Site "Kragujevac"]
[Date "2018.09.19"]
[Round "8"]
[White "Djordjevic, Vuk"]
[Black "Dezelin, Milan"]
[Result "1-0"]
[ECO "D52"]
[WhiteElo "2404"]
[BlackElo "1985"]
[Annotator "ChessBase"]
[PlyCount "72"]
[EventDate "2018.09.14"]
[EventType "team-tourn"]
[EventCountry "SRB"]
[SourceTitle "playchess.com"]
[Source "ChessBase"]
[SourceQuality "1"]
[TimeControl "40/5400+30:1800+30"]

1. d4 {[%emt 0:02:13]} Nf6 {[%emt 0:00:00]} 2. Bg5 {[%emt 0:00:10]} d5 {[%emt 0:00:00]} 3. e3 {[%emt 0:00:14]} e6 {[%emt 0:05:33]} 4. c4 {[%emt 0:02:10]} c6 {[%emt 0:00:33]} 5. Nc3 {[%emt 0:05:10]} Nbd7 {[%emt 0:00:12]} 6. Nf3 {[%emt 0:00:09]} Qa5 {[%emt 0:00:26]} 7. Nd2 {[%emt 0:02:08]} Bb4 {[%emt 0:02:46]} 8. Qc2 {[%emt 0:00:47]} O-O {[%emt 0:00:06]} 9. Be2 {[%emt 0:00:31]} dxc4 {[%emt 0:01:26]} 10. Bxf6 {[%emt 0:00:41]} Nxf6 {[%emt 0:00:02]} 11. Nxc4 {[%emt 0:00:19]} Qc7 {[%emt 0:10:41]} 12. O-O {[%emt 0:01:26]} Bd7 {[%emt 0:19:43]} 13. a3 {[%emt 0:08:45]} Be7 {[%emt 0:09:05]} 14. b4 {[%emt 0:04:06]} b6 {[%emt 0:07:56]} 15. Rab1 {[%emt 0:10:37]} Nd5 {[%emt 0:10:35]} 16. Rfc1 {[%emt 0:08:35]} Rfc8 {[%emt 0:10:56]} 17. e4 {[%emt 0:03:31]} Nxc3 {[%emt 0:02:31]} 18. Qxc3 {[%emt 0:00:11]} Be8 {[%emt 0:09:15]} 19. g3 {[%emt 0:09:22]} Rd8 {[%emt 0:02:48]} 20. Nd2 {[%emt 0:05:28]} Qd6 {[%emt 0:01:47]} 21. Nb3 {[%emt 0:01:11]} a5 {[%emt 0:01:52]} 22. e5 {[%emt 0:07:20]} Qd5 {[%emt 0:00:25]} 23. bxa5 {[%emt 0:02:30]} Bxa3 {[%emt 0:00:32]} 24. Bc4 {[%emt 0:02:42]} Qd7 {[%emt 0:01:00]} 25. Rd1 {[%emt 0:01:06]} b5 {[%emt 0:00:36]} 26. Be2 {[%emt 0:01:40]} Qa7 {[%emt 0:00:54]} 27. Ra1 {[%emt 0:01:55]} Be7 {[%emt 0:00:30]} 28. Nc5 {[%emt 0:00:14]} Bxc5 {[%emt 0:00:23]} 29. dxc5 {[%emt 0:00:08]} Rd5 {[%emt 0:00:16]} 30. Rxd5 {[%emt 0:03:40]} exd5 {[%emt 0:00:02]} 31. a6 {[%emt 0:09:54]} Bd7 {[%emt 0:00:25]} 32. Bd3 {[%emt 0:03:31]} Bc8 {[%emt 0:01:20]} 33. Qd4 {[%emt 0:00:09]} Qe7 {[%emt 0:00:46]} 34. a7 {[%emt 0:01:34]} Rxa7 {[%emt 0:00:34]} 35. Rxa7 {[%emt 0:00:43]} Qxa7 {[%emt 0:00:01]} 36. Qh4 {[%emt 0:00:13]} Qa1+ {[%emt 0:02:03]} 1-0

[Event "Central-SRB chT 2018"]
[Site "Kragujevac"]
[Date "2018.09.19"]
[Round "8"]
[White "Markovic, Zoran S"]
[Black "Jesic, Dusan"]
[Result "1/2-1/2"]
[ECO "B92"]
[WhiteElo "2346"]
[BlackElo "2322"]
[Annotator "NA"]
[PlyCount "70"]
[EventDate "2018.09.14"]
[EventType "team-tourn"]
[EventCountry "SRB"]
[SourceTitle "playchess.com"]
[Source "ChessBase"]
[SourceQuality "1"]
[TimeControl "40/5400+30:1800+30"]

{[%evp 8,66,27,27,29,19,21,6,26,30,47,53,40,6,39,17,22,12,31,33,53,37,20,46,44,32767,54,9,54,29,37,32767,32767,25,76,76,32767,32767,32767,32767,32767,32767,32767,32767,32767,160,932,145,134,137,137,61,65,56,52,25,37,18,7,12,0]} 1. e4 {[%emt 0:00:00]} c5 {[%emt 0:00:00]} 2. Nf3 {[%emt 0:00:00]} d6 {[%emt 0:00:00]} 3. d4 {[%emt 0:00:00]} cxd4 {[%emt 0:00:00]} 4. Nxd4 {[%emt 0:00:06]} Nf6 {[%emt 0:00:00]} 5. Nc3 {[%emt 0:00:05]} a6 {[%emt 0:00:04]} 6. Be2 {[%emt 0:00:06]} e5 {[%emt 0:00:08]} 7. Nb3 {[%emt 0:00:11]} Be6 {[%emt 0:00:09]} 8. f4 {[%emt 0:00:49]} exf4 {[%emt 0:09:06]} 9. Bxf4 {[%emt 0:00:55]} Nc6 {[%emt 0:00:18]} 10. O-O {[%emt 0:00:56]} (10. Qd3 $14) 10... Be7 {[%emt 0:00:10]} 11. Kh1 {[%emt 0:00:52]} O-O {[%emt 0:00:11]} 12. Qe1 {[%emt 0:02:40] LiveBook: 87 Games} Qb6 {[%emt 0:07:45] B92: Sicilian Najdorf: 6 Be2} (12... d5 13. exd5 Nxd5 14. Rd1 Bb4 15. Bf3 Nce7 16. Be5 Bxc3 17. Bxc3 Qc7 18. Be5 Qxc2 19. Be4 Qc8 20. Qg3 {0-1 (35) Jakovenko,D (2736)-Naiditsch,A (2689) Moscow 2009}) 13. Rd1 {[%emt 0:11:06]} Rfd8 {[%emt 0:15:22]} 14. Nd5 $146 {[%emt 0:06:41]} ({Predecessor:} 14. Qg3 Ne8 15. Be3 Qc7 16. Qf2 Rdc8 17. Na4 Rab8 18. Nb6 Rd8 19. c3 Ne5 20. Nd5 Bxd5 21. Rxd5 {1-0 (37) Panarin,M (2486)-Barsamian,E (1999) Sochi 2005}) 14... Bxd5 $1 {[%emt 0:01:56]} 15. exd5 {[%emt 0:00:06]} Ne5 {[%emt 0:03:39]} 16. c4 {[%emt 0:07:13]} Ng6 {[%emt 0:05:12]} 17. Bd3 {[%emt 0:15:02]} (17. Bd2 $5 {[%cal Rd2a5]}) 17... Re8 {[%emt 0:05:27]} 18. Be3 {[%emt 0:08:48]} Qc7 {[%emt 0:05:06]} 19. Bd4 {[%emt 0:07:14]} Nd7 {[%emt 0:03:14]} 20. Qg3 {[%emt 0:06:01]} Nge5 {[%emt 0:07:22] [#]} 21. Bxh7+ $1 {[%emt 0:07:26]} Kxh7 {[%emt 0:02:21]} 22. Rxf7 {[%emt 0:00:28]} Bf8 {[%emt 0:02:39]} 23. Bxe5 {[%emt 0:00:38]} Rxe5 {[%emt 0:00:47]} 24. Qh3+ {[%emt 0:00:30]} Kg8 {[%emt 0:00:17]} 25. Qxd7 {[%emt 0:02:43]} Qxc4 {[%emt 0:00:29]} 26. Qxb7 {[%emt 0:05:37]} Qg4 $2 {[%emt 0:13:05]} (26... Rae8 $16 27. Rff1 R8e7) 27. Rff1 $2 {[%emt 0:01:43]} (27. Rf3 $18 {und der Rest ist Schweigen.} Re3 28. h3 (28. Qxa8 Rxf3 29. Rg1 Rf2 $14)) 27... Re2 {[%emt 0:00:22]} 28. Qf7+ {[%emt 0:00:41]} Kh8 {[%emt 0:00:52]} 29. Qf3 {[%emt 0:00:30]} (29. Rg1 $16) 29... Qxf3 {[%emt 0:00:09]} 30. Rxf3 {[%emt 0:00:21]} Rxb2 {[%emt 0:00:07]} 31. a3 {[%emt 0:01:52]} Rc8 {[%emt 0:07:11]} 32. h3 Be7 {[%emt 0:00:12]} 33. Nd4 {[%emt 0:04:28]} Bf6 $11 {[%emt 0:00:39]} 34. Nf5 {[%emt 0:06:09]} Rcc2 {[%emt 0:00:46]} 35. Ne3 {[%emt 0:01:30]} Rc3 {[%emt 0:04:32]} 1/2-1/2

[Event "Central-SRB chT 2018"]
[Site "Kragujevac"]
[Date "2018.09.19"]
[Round "8"]
[White "Pantelic, Sasa"]
[Black "Nestorovic, Dejan"]
[Result "1/2-1/2"]
[ECO "E16"]
[WhiteElo "2294"]
[BlackElo "2340"]
[Annotator "ChessBase"]
[PlyCount "59"]
[EventDate "2018.09.14"]
[EventType "team-tourn"]
[EventCountry "SRB"]
[SourceTitle "playchess.com"]
[Source "ChessBase"]
[SourceQuality "1"]
[TimeControl "40/5400+30:1800+30"]

1. d4 {[%emt 0:00:00]} Nf6 {[%emt 0:00:00]} 2. c4 {[%emt 0:00:00]} e6 {[%emt 0:00:00]} 3. Nf3 {[%emt 0:00:00]} Bb4+ {[%emt 0:00:06]} 4. Bd2 {[%emt 0:00:46]} Qe7 {[%emt 0:00:44]} 5. e3 {[%emt 0:00:15]} O-O {[%emt 0:06:18]} 6. Bd3 {[%emt 0:01:26]} d5 {[%emt 0:01:09]} 7. O-O {[%emt 0:01:21]} c5 {[%emt 0:06:16]} 8. Bxb4 {[%emt 0:09:03]} cxb4 {[%emt 0:00:17]} 9. Nbd2 {[%emt 0:00:23]} Nc6 {[%emt 0:03:30]} 10. Qc2 {[%emt 0:05:54]} dxc4 {[%emt 0:10:58]} 11. Nxc4 {[%emt 0:02:19]} Rd8 {[%emt 0:00:46]} 12. Nce5 {[%emt 0:08:15]} Bd7 {[%emt 0:18:26]} 13. Nxd7 {[%emt 0:33:23]} Rxd7 {[%emt 0:02:43]} 14. Rac1 {[%emt 0:03:51]} Rc7 {[%emt 0:06:00]} 15. Qc5 {[%emt 0:05:58]} Rac8 {[%emt 0:01:27]} 16. Qxe7 {[%emt 0:00:20]} Nxe7 {[%emt 0:00:28]} 17. Rxc7 {[%emt 0:00:06]} Rxc7 {[%emt 0:00:10]} 18. Rd1 {[%emt 0:00:48]} Ned5 {[%emt 0:12:48]} 19. g3 {[%emt 0:02:30]} Nb6 {[%emt 0:01:46]} 20. Nd2 {[%emt 0:03:08]} Na4 {[%emt 0:02:57]} 21. Rb1 {[%emt 0:00:23]} a6 {[%emt 0:00:42]} 22. Kf1 {[%emt 0:01:49]} b5 {[%emt 0:05:04]} 23. Ke1 {[%emt 0:00:43]} Kf8 {[%emt 0:05:44]} 24. Ne4 {[%emt 0:00:55]} Nxe4 {[%emt 0:05:53]} 25. Bxe4 {[%emt 0:00:06]} f5 {[%emt 0:00:56]} 26. Bd3 {[%emt 0:00:12]} Ke7 {[%emt 0:00:07]} 27. Kd2 {[%emt 0:00:10]} Kd6 {[%emt 0:00:14]} 28. Bc2 {[%emt 0:09:57]} Nb6 {[%emt 0:00:35]} 29. Bd3 {[%emt 0:00:21]} Na4 {[%emt 0:01:51]} 30. Bc2 {[%emt 0:00:19] Ke5} 1/2-1/2

[Event "Central-SRB chT 2018"]
[Site "Kragujevac"]
[Date "2018.09.20"]
[Round "9"]
[White "Radivojevic, Ivan"]
[Black "Markovic, Zoran S"]
[Result "1/2-1/2"]
[ECO "B23"]
[WhiteElo "2360"]
[BlackElo "2346"]
[Annotator "ChessBase"]
[PlyCount "33"]
[EventDate "2018.09.14"]
[EventType "team-tourn"]
[EventCountry "SRB"]
[SourceTitle "playchess.com"]
[Source "ChessBase"]
[SourceQuality "1"]
[TimeControl "40/5400+30:1800+30"]

1. e4 {[%emt 0:00:00]} c5 {[%emt 0:00:00]} 2. Nc3 {[%emt 0:01:17]} Nc6 {[%emt 0:00:00]} 3. f4 {[%emt 0:05:00]} g6 {[%emt 0:00:59]} 4. Nf3 {[%emt 0:00:05]} Bg7 {[%emt 0:00:09]} 5. Bb5 {[%emt 0:00:07]} Nd4 {[%emt 0:00:33]} 6. O-O {[%emt 0:00:06]} Nxb5 {[%emt 0:00:26]} 7. Nxb5 {[%emt 0:00:04]} d5 {[%emt 0:00:37]} 8. exd5 {[%emt 0:01:07]} a6 {[%emt 0:00:38]} 9. Nc3 {[%emt 0:00:05]} Nf6 {[%emt 0:00:22]} 10. d4 {[%emt 0:00:45]} c4 {[%emt 0:00:46]} 11. Qe2 {[%emt 0:02:14]} Nxd5 {[%emt 0:01:26]} 12. Qxc4 {[%emt 0:06:14]} Be6 {[%emt 0:01:56]} 13. Nxd5 {[%emt 0:21:01]} Bxd5 {[%emt 0:01:22]} 14. Qe2 {[%emt 0:00:39]} Rc8 {[%emt 0:01:09]} 15. Rf2 {[%emt 0:08:10]} Bxf3 {[%emt 0:02:38]} 16. Rxf3 {[%emt 0:16:07]} Qxd4+ {[%emt 0:04:46]} 17. Kh1 1/2-1/2

[Event "Central-SRB chT 2018"]
[Site "Kragujevac"]
[Date "2018.09.20"]
[Round "9"]
[White "Adzic, Momcilo"]
[Black "Markovic, Milan D"]
[Result "0-1"]
[ECO "B23"]
[WhiteElo "2265"]
[BlackElo "2247"]
[Annotator "ChessBase"]
[PlyCount "108"]
[EventDate "2018.09.14"]
[EventType "team-tourn"]
[EventCountry "SRB"]
[SourceTitle "playchess.com"]
[Source "ChessBase"]
[SourceQuality "1"]
[TimeControl "40/5400+30:1800+30"]

1. e4 {[%emt 0:00:00]} c5 {[%emt 0:00:00]} 2. Nc3 {[%emt 0:00:00]} g6 {[%emt 0:00:00]} 3. g3 {[%emt 0:00:00]} Bg7 {[%emt 0:00:00]} 4. Bg2 {[%emt 0:00:00]} Nc6 {[%emt 0:00:02]} 5. Nge2 {[%emt 0:00:06]} d6 {[%emt 0:00:20]} 6. O-O {[%emt 0:01:12]} Nf6 {[%emt 0:00:39]} 7. d3 {[%emt 0:01:08]} O-O {[%emt 0:00:35]} 8. Be3 {[%emt 0:01:37]} Ng4 {[%emt 0:01:17]} 9. Bf4 {[%emt 0:01:15]} Nd4 {[%emt 0:00:17]} 10. h3 {[%emt 0:01:52]} Ne5 {[%emt 0:15:32]} 11. Be3 {[%emt 0:01:07]} Nef3+ {[%emt 0:00:05]} 12. Kh1 {[%emt 0:00:53]} e5 13. Ng1 {[%emt 0:00:11]} Nxg1 {[%emt 0:00:51]} 14. Kxg1 {[%emt 0:00:34]} Be6 {[%emt 0:06:04]} 15. f4 {[%emt 0:00:41]} Qd7 {[%emt 0:00:49]} 16. Kh2 {[%emt 0:06:19]} Rab8 {[%emt 0:00:40]} 17. fxe5 {[%emt 0:05:05]} dxe5 18. Nd5 {[%emt 0:00:08]} Bxd5 {[%emt 0:03:13]} 19. exd5 {[%emt 0:08:19]} b6 {[%emt 0:07:17]} 20. Bf2 f5 {[%emt 0:01:32]} 21. c3 {[%emt 0:10:30]} Nb5 22. Qa4 Rfd8 {[%emt 0:04:32]} 23. c4 {[%emt 0:02:09]} Nd6 24. Qc2 Bf8 {[%emt 0:13:40]} 25. Rab1 {[%emt 0:04:30]} Rdc8 {[%emt 0:01:30]} 26. Rfe1 {[%emt 0:00:45]} Nf7 {[%emt 0:00:29]} 27. h4 {[%emt 0:03:15]} Bd6 {[%emt 0:00:52]} 28. Bh3 {[%emt 0:00:40]} h5 {[%emt 0:00:31]} 29. Qd2 {[%emt 0:00:58]} Bf8 {[%emt 0:05:35]} 30. Be3 {[%emt 0:00:29]} Re8 {[%emt 0:00:50]} 31. a3 {[%emt 0:02:52]} a5 {[%emt 0:05:02]} 32. b3 {[%emt 0:00:49]} Bd6 {[%emt 0:00:30]} 33. Kg2 {[%emt 0:02:42]} Qc7 {[%emt 0:00:30]} 34. Bf2 {[%emt 0:00:16]} Rb7 {[%emt 0:03:25]} 35. a4 {[%emt 0:02:40]} Bf8 {[%emt 0:00:29]} 36. Be3 {[%emt 0:00:07]} Bd6 {[%emt 0:00:25]} 37. Bf2 {[%emt 0:01:21]} Qb8 {[%emt 0:00:22]} 38. Re2 {[%emt 0:00:31]} Rbe7 {[%emt 0:00:12]} 39. Rbe1 {[%emt 0:02:09]} Qd8 {[%emt 0:00:36]} 40. Be3 {[%emt 0:00:00]} Rd7 {[%emt 0:00:00]} 41. Rf1 {[%emt 0:02:13]} e4 {[%emt 0:03:55]} 42. Bf2 {[%emt 0:02:40]} exd3 {[%emt 0:00:17]} 43. Qxd3 {[%emt 0:00:26]} Rxe2 {[%emt 0:01:16]} 44. Qxe2 {[%emt 0:00:02]} Re7 {[%emt 0:00:07]} 45. Qd2 {[%emt 0:00:15]} Qe8 {[%emt 0:01:53]} 46. Re1 {[%emt 0:00:53]} Rxe1 {[%emt 0:00:37]} 47. Bxe1 {[%emt 0:04:16]} Qe4+ {[%emt 0:01:29]} 48. Kf2 {[%emt 0:01:37]} Ne5 {[%emt 0:04:35]} 49. Bf1 {[%emt 0:15:01]} f4 {[%emt 0:09:53]} 50. gxf4 {[%emt 0:04:32]} Ng4+ {[%emt 0:00:13]} 51. Kg3 {[%emt 0:01:55]} Ne3 {[%emt 0:00:12]} 52. Qf2 {[%emt 0:02:02]} Nf5+ {[%emt 0:00:07]} 53. Kh2 {[%emt 0:00:24]} Bxf4+ {[%emt 0:00:15]} 54. Kh3 {[%emt 0:00:48]} Qh1+ {[%emt 0:00:08]} 0-1